fUSD/lending_fUSD_20260118
["ID","MTS","AMOUNT","RATE_DAILY","PERIOD"]
[402636200,1768732254532,-500.0,0.0001726,2]
[402636201,1768732254544,-500.0,0.0001726,2]
[402636202,1768732254553,-500.0,0.0001726,2]
[402636203,1768732254563,-281.99897673,0.0001726,2]
[402636204,1768732254573,-500.0,0.0001726,2]
[402636205,1768732254583,-287.0652963,0.0001726,2]
[402636206,1768732254592,-712.97,0.0001726,2]
[402636207,1768732254601,-500.0,0.0001726,2]
[402636208,1768732254610,-500.0,0.0001726,2]
[402636209,1768732254620,-500.0,0.0001726,2]
[402636210,1768732254629,-500.0,0.0001726,2]
[402636211,1768732254638,-500.0,0.0001726,2]
[402636212,1768732254647,-500.0,0.0001726,2]
[402636213,1768732254656,-280.03616481,0.0001726,2]
[402636214,1768732254667,-658.8,0.0001726,2]
[402636215,1768732254677,-500.0,0.0001726,2]
[402636216,1768732254686,-442.13151235,0.0001726,2]
[402636217,1768732254695,-500.0,0.0001726,2]
[402636218,1768732254704,-158.85423683,0.0001726,2]
[402636219,1768732254713,-500.0,0.0001726,2]
[402636220,1768732254722,-500.0,0.0001726,2]
[402636221,1768732254731,-677.13,0.0001726,2]
[402636222,1768732254741,-500.0,0.0001726,2]
[402636223,1768732254750,-500.0,0.0001726,2]
[402636224,1768732254759,-500.0,0.0001726,2]
[402636225,1768732254769,-500.0,0.0001726,2]
[402636226,1768732254778,-500.0,0.0001726,2]
[402636227,1768732254787,-500.0,0.0001726,2]
[402636228,1768732254796,-500.0,0.0001726,2]
[402636229,1768732254810,-492.1398225,0.0001726,2]
[402636230,1768732254819,-500.0,0.0001726,2]
[402636231,1768732254829,-500.0,0.0001726,2]
[402636232,1768732254838,-596.53971654,0.0001726,2]
[402636233,1768732254847,-500.0,0.0001726,2]
[402636234,1768732254857,-500.0,0.0001726,2]
[402636235,1768732254866,-777.05,0.0001726,2]
[402636236,1768732254875,-500.0,0.0001726,2]
[402636237,1768732254884,-500.0,0.0001726,2]
[402636238,1768732254894,-397.21207331,0.0001726,2]
[402636239,1768732254903,-500.0,0.0001726,2]
[402636240,1768732254912,-4641.83,0.0001726,2]
[402636241,1768732254922,-500.0,0.0001726,2]
[402636242,1768732254931,-371.95055888,0.0001726,2]
[402636243,1768732254941,-500.0,0.0001726,2]
[402636244,1768732254950,-500.0,0.0001726,2]
[402636245,1768732254960,-500.0,0.0001726,2]
[402636246,1768732254969,-500.0,0.0001726,2]
[402636247,1768732254979,-500.0,0.0001726,2]
[402636248,1768732254988,-500.0,0.0001726,2]
[402636249,1768732254998,-500.0,0.0001726,2]
[402636250,1768732255009,-500.0,0.0001726,2]
[402636251,1768732255020,-500.0,0.0001726,2]
[402636252,1768732255029,-500.0,0.0001726,2]
[402636253,1768732255040,-500.0,0.0001726,2]
[402636254,1768732255049,-500.0,0.0001726,2]
[402636255,1768732255058,-500.0,0.0001726,2]
[402636256,1768732255069,-500.0,0.0001726,2]
[402636257,1768732255079,-500.0,0.0001726,2]
[402636258,1768732255088,-500.0,0.0001726,2]
[402636259,1768732255098,-500.0,0.0001726,2]
[402636260,1768732255107,-279.534182,0.0001726,2]
[402636261,1768732255117,-561.98,0.0001726,2]
[402636262,1768732255126,-500.0,0.0001726,2]
[402636263,1768732255135,-500.0,0.0001726,2]
[402636264,1768732255144,-500.0,0.0001726,2]
[402636265,1768732255153,-500.0,0.0001726,2]
[402636266,1768732255163,-500.0,0.0001726,2]
[402636267,1768732255172,-500.0,0.0001726,2]
[402636268,1768732255181,-364.52008867,0.0001726,2]
[402636269,1768732255191,-500.0,0.0001726,2]
[402636270,1768732255200,-500.0,0.0001726,2]
[402636271,1768732255209,-500.0,0.0001726,2]
[402636272,1768732255218,-500.0,0.0001726,2]
[402636273,1768732255227,-579.08981172,0.0001726,2]
[402636274,1768732255238,-500.0,0.0001726,2]
[402636275,1768732255537,-542.24,0.0001726,2]
[402636276,1768732255549,-222.05323251,0.0001726,2]
[402636277,1768732255558,-500.0,0.0001726,2]
[402636278,1768732255567,-500.0,0.0001726,2]
[402636279,1768732255577,-603.10789331,0.0001726,2]
[402636280,1768732255587,-500.0,0.0001726,2]
[402636281,1768732255597,-199.7621583,0.0001726,2]
[402636282,1768732255606,-500.0,0.0001726,2]
[402636283,1768732255616,-500.0,0.0001726,2]
[402636284,1768732255625,-500.0,0.0001726,2]
[402636285,1768732255634,-500.0,0.0001726,2]
[402636286,1768732255643,-500.0,0.0001726,2]
[402636287,1768732255652,-500.0,0.0001726,2]
[402636288,1768732255661,-500.0,0.0001726,2]
[402636289,1768732255671,-500.0,0.0001726,2]
[402636290,1768732255680,-500.0,0.0001726,2]
[402636291,1768732255689,-500.0,0.0001726,2]
[402636292,1768732255698,-469.25889048,0.0001726,2]
[402636293,1768732255707,-500.0,0.0001726,2]
[402636294,1768732255717,-500.0,0.0001726,2]
[402636295,1768732255726,-513.23,0.0001726,2]
[402636296,1768732255735,-527.81,0.0001726,2]
[402636297,1768732255746,-500.0,0.0001726,2]
[402636298,1768732255755,-500.0,0.0001726,2]
[402636299,1768732255765,-500.0,0.0001726,2]
[402636300,1768732255775,-500.0,0.0001726,2]
[402636301,1768732255784,-346.68542403,0.0001726,2]
[402636302,1768732255793,-500.0,0.0001726,2]
[402636303,1768732255803,-508.74,0.0001726,2]
[402636304,1768732255812,-500.0,0.0001726,2]
[402636305,1768732255821,-500.0,0.0001726,2]
[402636306,1768732255830,-527.91,0.0001726,2]
[402636307,1768732255839,-500.0,0.0001726,2]
[402636308,1768732255849,-3368.44,0.0001726,2]
[402636309,1768732255858,-500.0,0.0001726,2]
[402636310,1768732255867,-500.0,0.0001726,2]
[402636311,1768732255877,-502.33,0.0001726,2]
[402636312,1768732255886,-500.0,0.0001726,2]
[402636313,1768732255896,-500.0,0.0001726,2]
[402636314,1768732255905,-500.0,0.0001726,2]
[402636315,1768732255914,-500.0,0.0001726,2]
[402636316,1768732255923,-500.0,0.0001726,2]
[402636317,1768732255932,-500.0,0.0001726,2]
[402636318,1768732255942,-500.0,0.0001726,2]
[402636319,1768732255951,-500.0,0.0001726,2]
[402636320,1768732255960,-500.0,0.0001726,2]
[402636321,1768732255969,-500.0,0.0001726,2]
[402636322,1768732255979,-500.0,0.0001726,2]
[402636323,1768732255988,-696.23,0.0001726,2]
[402636324,1768732255997,-500.0,0.0001726,2]
[402636325,1768732256007,-500.0,0.0001726,2]
[402636326,1768732256016,-500.0,0.0001726,2]
[402636327,1768732256026,-500.0,0.0001726,2]
[402636328,1768732256036,-535.02,0.0001726,2]
[402636329,1768732256048,-500.0,0.0001726,2]
[402636330,1768732256061,-500.0,0.0001726,2]
[402636331,1768732256071,-612.81472691,0.0001726,2]
[402636332,1768732256085,-500.0,0.0001726,2]
[402636333,1768732256095,-500.0,0.0001726,2]
[402636334,1768732256104,-602.78,0.0001726,2]
[402636335,1768732256114,-500.0,0.0001726,2]
[402636336,1768732256125,-574.59,0.0001726,2]
[402636337,1768732256134,-500.0,0.0001726,2]
[402636338,1768732256143,-500.0,0.0001726,2]
[402636339,1768732256152,-500.0,0.0001726,2]
[402636340,1768732256161,-500.0,0.0001726,2]
[402636341,1768732256170,-298.1182132,0.0001726,2]
[402636342,1768732256180,-500.0,0.0001726,2]
[402636343,1768732256190,-500.0,0.0001726,2]
[402636344,1768732256199,-500.0,0.0001726,2]
[402636345,1768732256208,-500.0,0.0001726,2]
[402636346,1768732256218,-500.0,0.0001726,2]
[402636347,1768732256227,-500.0,0.0001726,2]
[402636348,1768732256236,-500.0,0.0001726,2]
[402636349,1768732256246,-600.0,0.0001726,2]
[402636350,1768732256256,-150.0,0.0001726,2]
[402636351,1768732256265,-1000.0,0.0001726,2]
[402636352,1768732256274,-8697.59276557,0.00017278,2]
[402636353,1768732256283,-150.0,0.0001728,2]
[402636354,1768732256293,-1132.80477824,0.00017308,2]
[402636355,1768732256304,-2000.0,0.00017316,2]
[402636356,1768732256320,-334.5472959,0.00017322,2]
[402636357,1768732256329,-4001.0,0.00017322,2]
[402636358,1768732256339,-1268.0,0.0001733,2]
[402636359,1768732256349,-412.0,0.0001733,2]
[402636360,1768732256359,-915.0,0.0001733,2]
[402636361,1768732256370,-1202.0,0.0001733,2]
[402636362,1768732256379,-1354.189,0.0001733,2]
[402636363,1768732256388,-1407.0,0.0001733,2]
[402636364,1768732256398,-615.0,0.0001733,2]
[402636365,1768732256407,-226.6,0.00017342,2]
[402636366,1768732256416,-166.66,0.00017344,2]
[402636367,1768732256426,-2675.87114207,0.00017366,2]
[402636368,1768732256436,-150.0,0.000174,2]
[402636369,1768732256449,-150.0,0.000174,2]
[402636370,1768732256458,-150.0,0.000174,2]
[402636371,1768732256469,-150.0,0.000174,2]
[402636372,1768732256485,-1132.80477824,0.00017456,2]
[402636373,1768732256496,-226.6,0.00017473,2]
[402636374,1768732256506,-249.00467733,0.000175,2]
[402636375,1768732256518,-150.0,0.0001752,2]
[402636376,1768732256527,-531.0,0.00017522,2]
[402636377,1768732256537,-957.38758843,0.00017534,2]
[402636378,1768732256548,-500.0,0.00017534,2]
[402636379,1768732256557,-500.0,0.00017534,2]
[402636380,1768732256566,-500.0,0.00017534,2]
[402636381,1768732256575,-500.0,0.00017534,2]
[402636382,1768732256586,-500.0,0.00017534,2]
[402636383,1768732256596,-500.0,0.00017534,2]
[402636384,1768732256605,-197.43855124,0.00017534,2]
[402636385,1768732256614,-500.0,0.00017534,2]
[402636386,1768732256624,-500.0,0.00017534,2]
[402636387,1768732256632,-500.0,0.00017534,2]
[402636388,1768732256642,-500.0,0.00017534,2]
[402636389,1768732256651,-500.0,0.00017534,2]
[402636390,1768732256660,-500.0,0.00017534,2]
[402636391,1768732256669,-500.0,0.00017534,2]
[402636392,1768732256678,-500.0,0.00017534,2]
[402636393,1768732256687,-500.0,0.00017534,2]
[402636394,1768732256697,-500.0,0.00017534,2]
[402636395,1768732256707,-500.0,0.00017534,2]
[402636396,1768732256716,-500.0,0.00017534,2]
[402636397,1768732256725,-500.0,0.00017534,2]
[402636398,1768732256735,-1000.0,0.00017534,2]
[402636399,1768732256744,-500.0,0.00017534,2]
[402636400,1768732256754,-500.0,0.00017534,2]
[402636401,1768732256763,-500.0,0.00017534,2]
[402636402,1768732256772,-500.0,0.00017534,2]
[402636403,1768732256782,-500.0,0.00017534,2]
[402636404,1768732256791,-613.21,0.00017534,2]
[402636405,1768732256800,-500.0,0.00017534,2]
[402636406,1768732256810,-500.0,0.00017534,2]
[402636407,1768732256819,-500.0,0.00017534,2]
[402636408,1768732256828,-500.0,0.00017534,2]
[402636409,1768732256837,-500.0,0.00017534,2]
[402636410,1768732256847,-500.0,0.00017534,2]
[402636411,1768732256856,-500.0,0.00017534,2]
[402636412,1768732256865,-500.0,0.00017534,2]
[402636413,1768732256875,-1611.7,0.00017534,2]
[402636414,1768732256884,-506.07,0.00017534,2]
[402636415,1768732256894,-500.0,0.00017534,2]
[402636416,1768732256904,-500.0,0.00017534,2]
[402636417,1768732256913,-546.15,0.00017534,2]
[402636418,1768732256923,-500.0,0.00017534,2]
[402636419,1768732256932,-500.0,0.00017534,2]
[402636420,1768732256941,-500.0,0.00017534,2]
[402636421,1768732256951,-500.0,0.00017534,2]
[402636422,1768732256960,-500.0,0.00017534,2]
[402636423,1768732256970,-500.0,0.00017534,2]
[402636424,1768732256979,-500.0,0.00017534,2]
[402636425,1768732256988,-500.0,0.00017534,2]
[402636426,1768732256997,-500.0,0.00017534,2]
[402636427,1768732257007,-597.05,0.00017534,2]
[402636428,1768732257017,-500.0,0.00017534,2]
[402636429,1768732257026,-500.0,0.00017534,2]
[402636430,1768732257036,-500.0,0.00017534,2]
[402636431,1768732257046,-500.0,0.00017534,2]
[402636432,1768732257057,-500.0,0.00017534,2]
[402636433,1768732257067,-296.00530668,0.00017534,2]
[402636434,1768732257077,-500.0,0.00017534,2]
[402636435,1768732257087,-500.0,0.00017534,2]
[402636436,1768732257097,-517.6468193,0.00017534,2]
[402636437,1768732257106,-500.0,0.00017534,2]
[402636438,1768732257116,-500.0,0.00017534,2]
[402636439,1768732257126,-500.0,0.00017534,2]
[402636440,1768732257136,-500.0,0.00017534,2]
[402636441,1768732257146,-500.0,0.00017534,2]
[402636442,1768732257155,-500.0,0.00017534,2]
[402636443,1768732257165,-500.0,0.00017534,2]
[402636444,1768732257174,-570.19,0.00017534,2]
[402636445,1768732257183,-500.0,0.00017534,2]
[402636446,1768732257193,-500.0,0.00017534,2]
[402636447,1768732257203,-257.08437663,0.00017534,2]
[402636448,1768732257212,-500.0,0.00017534,2]
[402636449,1768732257221,-521.03,0.00017534,2]
[402636450,1768732257231,-500.0,0.00017534,2]
[402636451,1768732257240,-595.5,0.00017534,2]
[402636452,1768732257249,-500.0,0.00017534,2]
[402636453,1768732257260,-467.64194107,0.00017534,2]
[402636454,1768732257269,-626.37,0.00017534,2]
[402636455,1768732257279,-500.0,0.00017534,2]
[402636456,1768732257288,-705.84,0.00017534,2]
[402636457,1768732257298,-500.0,0.00017534,2]
[402636458,1768732257307,-500.0,0.00017534,2]
[402636459,1768732257317,-1595.35,0.00017534,2]
[402636460,1768732257326,-500.0,0.00017534,2]
[402636461,1768732257336,-500.0,0.00017534,2]
[402636462,1768732257345,-500.0,0.00017534,2]
[402636463,1768732257355,-500.0,0.00017534,2]
[402636464,1768732257364,-500.0,0.00017534,2]
[402636465,1768732257373,-500.0,0.00017534,2]
[402636466,1768732257382,-500.0,0.00017534,2]
[402636467,1768732257392,-500.0,0.00017534,2]
[402636468,1768732257401,-500.0,0.00017534,2]
[402636469,1768732257411,-500.0,0.00017534,2]
[402636470,1768732257420,-500.0,0.00017534,2]
[402636471,1768732257432,-321.31128509,0.00017534,2]
[402636472,1768732257442,-500.0,0.00017534,2]
[402636473,1768732257451,-500.0,0.00017534,2]
[402636474,1768732257461,-500.0,0.00017534,2]
[402636475,1768732257473,-500.0,0.00017534,2]
[402636476,1768732257482,-500.0,0.00017534,2]
[402636477,1768732257492,-500.0,0.00017534,2]
[402636478,1768732257501,-500.0,0.00017534,2]
[402636479,1768732257510,-500.0,0.00017534,2]
[402636480,1768732257520,-500.0,0.00017534,2]
[402636481,1768732257530,-500.0,0.00017534,2]
[402636482,1768732257539,-288.71398556,0.00017534,2]
[402636483,1768732257549,-712.97,0.00017534,2]
[402636484,1768732257558,-500.0,0.00017534,2]
[402636485,1768732257567,-500.0,0.00017534,2]
[402636486,1768732257576,-500.0,0.00017534,2]
[402636487,1768732257585,-419.00957537,0.00017534,2]
[402636488,1768732257595,-500.0,0.00017534,2]
[402636489,1768732257604,-500.0,0.00017534,2]
[402636490,1768732257613,-658.8,0.00017534,2]
[402636491,1768732257622,-500.0,0.00017534,2]
[402636492,1768732257632,-500.0,0.00017534,2]
[402636493,1768732257642,-500.0,0.00017534,2]
[402636494,1768732257651,-500.0,0.00017534,2]
[402636495,1768732257662,-677.13,0.00017534,2]
[402636496,1768732257672,-500.0,0.00017534,2]
[402636497,1768732257681,-500.0,0.00017534,2]
[402636498,1768732257690,-500.0,0.00017534,2]
[402636499,1768732257699,-278.04344976,0.00017534,2]
[402636500,1768732257709,-500.0,0.00017534,2]
[402636501,1768732257718,-500.0,0.00017534,2]
[402636502,1768732257727,-500.0,0.00017534,2]
[402636503,1768732257737,-595.44383607,0.00017534,2]
[402636504,1768732257746,-500.0,0.00017534,2]
[402636505,1768732257755,-500.0,0.00017534,2]
[402636506,1768732257764,-500.0,0.00017534,2]
[402636507,1768732257773,-777.05,0.00017534,2]
[402636508,1768732257782,-500.0,0.00017534,2]
[402636509,1768732257791,-597.47257685,0.00017534,2]
[402636510,1768732257800,-310.2594973,0.00017534,2]
[402636511,1768732257810,-4641.83,0.00017534,2]
[402636512,1768732257819,-500.0,0.00017534,2]
[402636513,1768732257828,-500.0,0.00017534,2]
[402636514,1768732257901,-500.0,0.00017534,2]
[402636515,1768732257912,-348.83709258,0.00017534,2]
[402636516,1768732257922,-500.0,0.00017534,2]
[402636517,1768732257933,-500.0,0.00017534,2]
[402636518,1768732257942,-500.0,0.00017534,2]
[402636519,1768732257951,-500.0,0.00017534,2]
[402636520,1768732257961,-235.7150467,0.00017534,2]
[402636521,1768732257970,-500.0,0.00017534,2]
[402636522,1768732257979,-500.0,0.00017534,2]
[402636523,1768732257988,-500.0,0.00017534,2]
[402636524,1768732257998,-500.0,0.00017534,2]
[402636525,1768732258007,-500.0,0.00017534,2]
[402636526,1768732258016,-500.0,0.00017534,2]
[402636527,1768732258025,-500.0,0.00017534,2]
[402636528,1768732258035,-500.0,0.00017534,2]
[402636529,1768732258046,-500.0,0.00017534,2]
[402636530,1768732258055,-561.98,0.00017534,2]
[402636531,1768732258064,-500.0,0.00017534,2]
[402636532,1768732258074,-531.04340684,0.00017534,2]
[402636533,1768732258084,-500.0,0.00017534,2]
[402636534,1768732258093,-500.0,0.00017534,2]
[402636535,1768732258102,-500.0,0.00017534,2]
[402636536,1768732258111,-500.0,0.00017534,2]
[402636537,1768732258121,-500.0,0.00017534,2]
[402636538,1768732258130,-419.21942532,0.00017534,2]
[402636539,1768732258139,-500.0,0.00017534,2]
[402636540,1768732258148,-500.0,0.00017534,2]
[402636541,1768732258159,-500.0,0.00017534,2]
[402636542,1768732258169,-542.24,0.00017534,2]
[402636543,1768732258177,-500.0,0.00017534,2]
[402636544,1768732258187,-500.0,0.00017534,2]
[402636545,1768732258197,-500.0,0.00017534,2]
[402636546,1768732258206,-500.0,0.00017534,2]
[402636547,1768732258215,-643.70332727,0.00017534,2]
[402636548,1768732258227,-500.0,0.00017534,2]
[402636549,1768732258236,-500.0,0.00017534,2]
[402636550,1768732258246,-500.0,0.00017534,2]
[402636551,1768732258256,-500.0,0.00017534,2]
[402636552,1768732258265,-500.0,0.00017534,2]
[402636553,1768732258274,-500.0,0.00017534,2]
[402636554,1768732258283,-500.0,0.00017534,2]
[402636555,1768732258293,-500.0,0.00017534,2]
[402636556,1768732258302,-500.0,0.00017534,2]
[402636557,1768732258312,-500.0,0.00017534,2]
[402636558,1768732258321,-513.23,0.00017534,2]
[402636559,1768732258330,-527.81,0.00017534,2]
[402636560,1768732258339,-500.0,0.00017534,2]
[402636561,1768732258348,-500.0,0.00017534,2]
[402636562,1768732258357,-500.0,0.00017534,2]
[402636563,1768732258367,-500.0,0.00017534,2]
[402636564,1768732258376,-500.0,0.00017534,2]
[402636565,1768732258385,-508.74,0.00017534,2]
[402636566,1768732258394,-500.0,0.00017534,2]
[402636567,1768732258403,-500.0,0.00017534,2]
[402636568,1768732258412,-527.91,0.00017534,2]
[402636569,1768732258422,-500.0,0.00017534,2]
[402636570,1768732258431,-3368.44,0.00017534,2]
[402636571,1768732258440,-500.0,0.00017534,2]
[402636572,1768732258450,-500.0,0.00017534,2]
[402636573,1768732258459,-502.33,0.00017534,2]
[402636574,1768732258471,-500.0,0.00017534,2]
[402636575,1768732258485,-500.0,0.00017534,2]
[402636576,1768732258494,-500.0,0.00017534,2]
[402636577,1768732258503,-500.0,0.00017534,2]
[402636578,1768732258515,-500.0,0.00017534,2]
[402636579,1768732258524,-500.0,0.00017534,2]
[402636580,1768732258534,-500.0,0.00017534,2]
[402636581,1768732258544,-500.0,0.00017534,2]
[402636582,1768732258554,-500.0,0.00017534,2]
[402636583,1768732258564,-500.0,0.00017534,2]
[402636584,1768732258574,-500.0,0.00017534,2]
[402636585,1768732258583,-696.23,0.00017534,2]
[402636586,1768732258592,-500.0,0.00017534,2]
[402636587,1768732258602,-500.0,0.00017534,2]
[402636588,1768732258611,-500.0,0.00017534,2]
[402636589,1768732258620,-546.70437087,0.00017534,2]
[402636590,1768732258630,-535.02,0.00017534,2]
[402636591,1768732258639,-500.0,0.00017534,2]
[402636592,1768732258648,-494.29987061,0.00017534,2]
[402636593,1768732258657,-500.0,0.00017534,2]
[402636594,1768732258667,-500.0,0.00017534,2]
[402636595,1768732258676,-602.78,0.00017534,2]
[402636596,1768732258685,-500.0,0.00017534,2]
[402636597,1768732258694,-574.59,0.00017534,2]
[402636598,1768732258704,-500.0,0.00017534,2]
[402636599,1768732258713,-500.0,0.00017534,2]
[402636600,1768732258722,-500.0,0.00017534,2]
[402636601,1768732258731,-164.1242988,0.00017534,2]
[402636602,1768732258740,-500.0,0.00017534,2]
[402636603,1768732258749,-500.0,0.00017534,2]
[402636604,1768732258758,-500.0,0.00017534,2]
[402636605,1768732258768,-500.0,0.00017534,2]
[402636606,1768732258777,-500.0,0.00017534,2]
[402636607,1768732258786,-500.0,0.00017534,2]
[402636608,1768732258795,-500.0,0.00017534,2]
[402636609,1768732258804,-600.0,0.00017534,2]
[402636610,1768732258814,-1000.0,0.00017534,2]
[402636611,1768732258824,-150.0,0.0001755,2]
[402636612,1768732258834,-150.0,0.0001755,2]
[402636613,1768732258844,-1497.84500584,0.00017555,2]
[402636614,1768732258853,-1500.0,0.00017568,2]
[402636615,1768732258863,-1500.0,0.00017568,2]
[402636616,1768732258872,-873.13604917,0.00017568,2]
[402636617,1768732258881,-1500.0,0.00017568,2]
[402636618,1768732258890,-1000.0,0.00017568,2]
[402636619,1768732258900,-363.75080239,0.00017568,2]
[402636620,1768732258909,-1500.0,0.00017568,2]
[402636621,1768732258918,-1130.30097829,0.00017568,2]
[402636622,1768732258927,-1500.0,0.00017568,2]
[402636623,1768732258936,-574.55972892,0.00017568,2]
[402636624,1768732258946,-1000.0,0.00017568,2]
[402636625,1768732258955,-1500.0,0.00017568,2]
[402636626,1768732258964,-1500.0,0.00017568,2]
[402636627,1768732258973,-940.38824472,0.00017568,2]
[402636628,1768732258983,-1500.0,0.00017568,2]
[402636629,1768732258992,-1122.45048123,0.00017568,2]
[402636630,1768732259002,-1000.0,0.00017568,2]
[402636631,1768732259011,-398.80157031,0.00017568,2]
[402636632,1768732259021,-1500.0,0.00017568,2]
[402636633,1768732259030,-1000.0,0.00017568,2]
[402636634,1768732259039,-1500.0,0.00017568,2]
[402636635,1768732259049,-1500.0,0.00017568,2]
[402636636,1768732259059,-1000.0,0.00017568,2]
[402636637,1768732259068,-1000.0,0.00017568,2]
[402636638,1768732259078,-1505.48964317,0.00017568,2]
[402636639,1768732259087,-282.54716323,0.00017568,2]
[402636640,1768732259096,-1500.0,0.00017568,2]
[402636641,1768732259106,-1000.0,0.00017568,2]
[402636642,1768732259115,-1500.0,0.00017568,2]
[402636643,1768732259125,-8697.59276557,0.00017589,2]
[402636644,1768732259135,-640.24385345,0.00017597,2]
[402636645,1768732259145,-1132.80477824,0.00017604,2]
[402636646,1768732259154,-226.6,0.00017605,2]
[402636647,1768732259164,-4128.0,0.00017624,2]
[402636648,1768732259173,-5888.0,0.00017633,2]
[402636649,1768732259182,-150.0,0.0001764,2]
[402636650,1768732259191,-8511.66526342,0.0001764,2]
[402636651,1768732259201,-150.0,0.000177,2]
[402636652,1768732259210,-997.87,0.000177,7]
[402636653,1768732259219,-466.53,0.00017709,2]
[402636654,1768732259228,-171.60967641,0.00017728,2]
[402636655,1768732259238,-226.6,0.00017737,2]
[402636656,1768732259247,-1132.80477824,0.00017752,2]
[402636657,1768732259256,-150.0,0.0001776,2]
[402636658,1768732259265,-3504.0,0.00017783,2]
[402636659,1768732259274,-9989.70063807,0.000178,2]
[402636660,1768732259283,-193.67377768,0.00017805,2]
[402636661,1768732259292,-258.23170357,0.00017805,2]
[402636662,1768732259301,-666.0,0.00017807,2]
[402636663,1768732259311,-300.0,0.00017807,2]
[402636664,1768732259320,-666.0,0.00017807,2]
[402636665,1768732259329,-2456.44059903,0.00017808,2]
[402636666,1768732259338,-2483.06338129,0.00017808,2]
[402636667,1768732259347,-957.38758843,0.00017808,2]
[402636668,1768732259356,-25000.0,0.00017808,3]
[402636669,1768732259365,-500.0,0.00017808,2]
[402636670,1768732259374,-500.0,0.00017808,2]
[402636671,1768732259383,-500.0,0.00017808,2]
[402636672,1768732259392,-500.0,0.00017808,2]
[402636673,1768732259401,-500.0,0.00017808,2]
[402636674,1768732259410,-500.0,0.00017808,2]
[402636675,1768732259420,-500.0,0.00017808,2]
[402636676,1768732259429,-185.85843722,0.00017808,2]
[402636677,1768732259438,-500.0,0.00017808,2]
[402636678,1768732259448,-500.0,0.00017808,2]
[402636679,1768732259457,-500.0,0.00017808,2]
[402636680,1768732259466,-500.0,0.00017808,2]
[402636681,1768732259478,-500.0,0.00017808,2]
[402636682,1768732259488,-293.67590282,0.00017808,2]
[402636683,1768732259497,-500.0,0.00017808,2]
[402636684,1768732259507,-500.0,0.00017808,2]
[402636685,1768732259516,-500.0,0.00017808,2]
[402636686,1768732259526,-500.0,0.00017808,2]
[402636687,1768732259535,-500.0,0.00017808,2]
[402636688,1768732259544,-1000.0,0.00017808,2]
[402636689,1768732259553,-500.0,0.00017808,2]
[402636690,1768732259562,-500.0,0.00017808,2]
[402636691,1768732259572,-481.35724538,0.00017808,2]
[402636692,1768732259580,-500.0,0.00017808,2]
[402636693,1768732259589,-500.0,0.00017808,2]
[402636694,1768732259598,-613.21,0.00017808,2]
[402636695,1768732259608,-500.0,0.00017808,2]
[402636696,1768732259617,-500.0,0.00017808,2]
[402636697,1768732259626,-500.0,0.00017808,2]
[402636698,1768732259635,-500.0,0.00017808,2]
[402636699,1768732259644,-500.0,0.00017808,2]